[Event "Titled Tuesday Blitz July 4 Late 2023"]
[White "Yeritsyan, Hayk"]
[Black "Moksh Amit Doshi"]
[WhiteFideId "13307320"]
[BlackFideId "25064967"]
[WhiteElo "2494"]
[BlackElo "2593"]
[Result "1-0"]
[Round "9"]
[TimeControl "180+2"]
[Date "2023.07.04"]
[WhiteClock "0:00:07"]
[BlackClock "0:00:21"]
[Board "53"]

1. d4 {[%clk 0:02:59]}  Nf6 {[%clk 0:02:58]} 2. Nf3 {[%clk 0:03:00]}  g6 {[%clk 0:02:58]} 3. Bf4 {[%clk 0:02:59]}  Bg7 {[%clk 0:02:58]} 4. h3 {[%clk 0:03:00]}  d6 {[%clk 0:02:57]} 5. e3 {[%clk 0:03:01]}  O-O {[%clk 0:02:58]} 6. c3 {[%clk 0:03:01]}  c5 {[%clk 0:02:58]} 7. Be2 {[%clk 0:03:02]}  Qb6 {[%clk 0:02:58]} 8. Qb3 {[%clk 0:03:02]}  Be6 {[%clk 0:02:57]} 9. Qxb6 {[%clk 0:03:02]}  axb6 {[%clk 0:02:58]} 10. a3 {[%clk 0:03:02]}  Nc6 {[%clk 0:02:54]} 11. Nbd2 {[%clk 0:03:03]}  Bf5 {[%clk 0:02:37]} 12. O-O {[%clk 0:03:02]}  Ne4 {[%clk 0:02:35]} 13. Nxe4 {[%clk 0:02:58]}  Bxe4 {[%clk 0:02:36]} 14. Bh2 {[%clk 0:02:58]}  e5 {[%clk 0:02:35]} 15. dxe5 {[%clk 0:02:55]}  dxe5 {[%clk 0:02:32]} 16. Rfd1 {[%clk 0:02:55]}  Rfd8 {[%clk 0:02:32]} 17. Rxd8+ {[%clk 0:02:47]}  Rxd8 {[%clk 0:02:33]} 18. Rd1 {[%clk 0:02:47]}  Rxd1+ {[%clk 0:02:29]} 19. Bxd1 {[%clk 0:02:48]}  Kf8 {[%clk 0:02:28]} 20. Nd2 {[%clk 0:02:25]}  Bd3 {[%clk 0:02:27]} 21. Bf3 {[%clk 0:02:17]}  f5 {[%clk 0:02:20]} 22. Bd5 {[%clk 0:01:29]}  Ke7 {[%clk 0:01:57]} 23. Nc4 {[%clk 0:01:20]}  b5 {[%clk 0:01:56]} 24. Bxc6 {[%clk 0:01:17]}  Bxc4 {[%clk 0:01:52]} 25. Bxb7 {[%clk 0:01:16]}  Kd6 {[%clk 0:01:51]} 26. Bf3 {[%clk 0:00:54]}  Bd5 {[%clk 0:01:44]} 27. Be2 {[%clk 0:00:37]}  Kc6 {[%clk 0:01:37]} 28. f3 {[%clk 0:00:27]}  e4 {[%clk 0:01:18]} 29. f4 {[%clk 0:00:18]}  b4 {[%clk 0:01:14]} 30. axb4 {[%clk 0:00:11]}  cxb4 {[%clk 0:01:15]} 31. c4 {[%clk 0:00:10]}  Bxb2 {[%clk 0:01:16]} 32. cxd5+ {[%clk 0:00:10]}  Kxd5 {[%clk 0:01:13]} 33. Kf1 {[%clk 0:00:10]}  b3 {[%clk 0:01:12]} 34. Ke1 {[%clk 0:00:09]}  Bc1 {[%clk 0:01:04]} 35. Kd1 {[%clk 0:00:09]}  Bxe3 {[%clk 0:01:04]} 36. Bb5 {[%clk 0:00:06]}  Kd4 {[%clk 0:01:02]} 37. Ba4 {[%clk 0:00:06]}  Kc3 {[%clk 0:01:03]} 38. g4 {[%clk 0:00:04]}  b2 {[%clk 0:00:57]} 39. Bc2 {[%clk 0:00:04]}  Bc1 {[%clk 0:00:58]} 40. Bb1 {[%clk 0:00:04]}  Kd4 {[%clk 0:00:52]} 41. Ke2 {[%clk 0:00:04]}  Be3 {[%clk 0:00:47]} 42. Bg3 {[%clk 0:00:03]}  Bg1 {[%clk 0:00:47]} 43. Bf2+ {[%clk 0:00:03]}  Bxf2 {[%clk 0:00:46]} 44. Kxf2 {[%clk 0:00:04]}  h5 {[%clk 0:00:26]} 45. g5 {[%clk 0:00:03]}  h4 {[%clk 0:00:26]} 46. Ke2 {[%clk 0:00:03]}  Kc4 {[%clk 0:00:25]} 47. Kd2 {[%clk 0:00:02]}  Kd4 {[%clk 0:00:25]} 48. Ke2 {[%clk 0:00:03]}  Kc3 {[%clk 0:00:26]} 49. Ke3 {[%clk 0:00:02]}  Kc4 {[%clk 0:00:25]} 50. Ke2 {[%clk 0:00:02]}  Kd4 {[%clk 0:00:24]} 51. Kd2 {[%clk 0:00:03]}  Kc4 {[%clk 0:00:24]} 52. Ke2 {[%clk 0:00:02]}  Kb3 {[%clk 0:00:24]} 53. Ke3 {[%clk 0:00:01]}  Kc3 {[%clk 0:00:24]} 54. Ke2 {[%clk 0:00:02]}  Kd4 {[%clk 0:00:23]} 55. Kd2 {[%clk 0:00:02]}  e3+ {[%clk 0:00:24]} 56. Ke2 {[%clk 0:00:03]}  Kc4 {[%clk 0:00:23]} 57. Kxe3 {[%clk 0:00:03]}  Kc3 {[%clk 0:00:24]} 58. Ke2 {[%clk 0:00:04]}  Kd4 {[%clk 0:00:25]} 59. Kd2 {[%clk 0:00:04]}  Kc4 {[%clk 0:00:26]} 60. Ke3 {[%clk 0:00:04]}  Kc3 {[%clk 0:00:26]} 61. Ba2 {[%clk 0:00:04]}  Kc2 {[%clk 0:00:23]} 62. Kd4 {[%clk 0:00:04]}  Kd2 {[%clk 0:00:20]} 63. Ke5 {[%clk 0:00:04]}  Ke3 {[%clk 0:00:21]} 64. Kf6 {[%clk 0:00:05]}  Kxf4 {[%clk 0:00:22]} 65. Kxg6 {[%clk 0:00:05]}  Kg3 {[%clk 0:00:22]} 66. Kh5 {[%clk 0:00:06]}  f4 {[%clk 0:00:22]} 67. g6 {[%clk 0:00:06]}  f3 {[%clk 0:00:22]} 68. g7 {[%clk 0:00:07]}  f2 {[%clk 0:00:22]} 69. g8=Q+ {[%clk 0:00:07]}  Kxh3 {[%clk 0:00:23]} 70. Qe6+ {[%clk 0:00:07]}  Kg2 {[%clk 0:00:23]} 71. Qg6+ {[%clk 0:00:07]}  Kh1 {[%clk 0:00:23]} 72. Bd5+ {[%clk 0:00:06]}  Kh2 {[%clk 0:00:21]} 73. Qg2# {[%clk 0:00:07]} 1-0


[Site "https://www.chess.com"]

[Event "Titled Tuesday Blitz July 4 Late 2023"]
[White "Vdovin, Vadim"]
[Black "Deng, Henry"]
[WhiteFideId "24107158"]
[BlackFideId "30965454"]
[WhiteElo "2590"]
[BlackElo "2492"]
[Result "1-0"]
[Round "9"]
[TimeControl "180+2"]
[Date "2023.07.04"]
[WhiteClock "0:01:11"]
[BlackClock "0:00:28"]
[Board "54"]

1. e4 {[%clk 0:02:55]}  c5 {[%clk 0:02:59]} 2. Nf3 {[%clk 0:02:55]}  e6 {[%clk 0:02:59]} 3. d4 {[%clk 0:02:54]}  cxd4 {[%clk 0:03:00]} 4. Nxd4 {[%clk 0:02:54]}  Nf6 {[%clk 0:03:00]} 5. Nc3 {[%clk 0:02:55]}  Nc6 {[%clk 0:03:00]} 6. Nxc6 {[%clk 0:02:55]}  bxc6 {[%clk 0:02:59]} 7. e5 {[%clk 0:02:55]}  Nd5 {[%clk 0:03:00]} 8. Ne4 {[%clk 0:02:55]}  Bb7 {[%clk 0:03:00]} 9. a3 {[%clk 0:02:38]}  c5 {[%clk 0:02:54]} 10. c4 {[%clk 0:02:30]}  Nf4 {[%clk 0:02:36]} 11. Qf3 {[%clk 0:02:15]}  Ng6 {[%clk 0:02:30]} 12. Bf4 {[%clk 0:01:57]}  Qb8 {[%clk 0:02:00]} 13. O-O-O {[%clk 0:01:46]}  Bc6 {[%clk 0:01:42]} 14. Bd3 {[%clk 0:01:14]}  Nxe5 {[%clk 0:01:16]} 15. Qg3 {[%clk 0:01:14]}  Nxd3+ {[%clk 0:01:15]} 16. Rxd3 {[%clk 0:01:13]}  Qb6 {[%clk 0:00:44]} 17. Nd6+ {[%clk 0:01:13]}  Bxd6 {[%clk 0:00:44]} 18. Bxd6 {[%clk 0:01:14]}  O-O-O {[%clk 0:00:28]} 19. Rb3 {[%clk 0:01:11]} 1-0


[Site "https://www.chess.com"]

[Event "Titled Tuesday Blitz July 4 Late 2023"]
[White "Nunez V, Gustavo Eduardo"]
[Black "benny_aizenberg"]
[WhiteFideId "4403690"]
[WhiteElo "2457"]
[BlackElo "2650"]
[Result "0-1"]
[Round "9"]
[TimeControl "180+2"]
[Date "2023.07.04"]
[WhiteClock "0:00:37"]
[BlackClock "0:00:13"]
[Board "60"]

1. e4 {[%clk 0:02:54]}  g5 {[%clk 0:03:00]} 2. d4 {[%clk 0:02:52]}  g4 {[%clk 0:03:01]} 3. Qxg4 {[%clk 0:02:51]}  d5 {[%clk 0:03:00]} 4. Qf3 {[%clk 0:02:48]}  dxe4 {[%clk 0:02:59]} 5. Qxe4 {[%clk 0:02:49]}  Nf6 {[%clk 0:02:59]} 6. Qd3 {[%clk 0:02:48]}  c5 {[%clk 0:02:56]} 7. dxc5 {[%clk 0:02:47]}  Qc7 {[%clk 0:02:55]} 8. Nc3 {[%clk 0:02:42]}  Na6 {[%clk 0:02:49]} 9. Be3 {[%clk 0:02:37]}  Nb4 {[%clk 0:02:43]} 10. Qb5+ {[%clk 0:02:35]}  Nc6 {[%clk 0:02:42]} 11. O-O-O {[%clk 0:02:33]}  Bd7 {[%clk 0:02:26]} 12. Qe2 {[%clk 0:02:26]}  O-O-O {[%clk 0:02:26]} 13. Nf3 {[%clk 0:02:25]}  Bg7 {[%clk 0:02:21]} 14. g3 {[%clk 0:02:19]}  Ng4 {[%clk 0:02:06]} 15. Bd2 {[%clk 0:02:12]}  Qa5 {[%clk 0:01:51]} 16. h3 {[%clk 0:02:08]}  Bxc3 {[%clk 0:01:15]} 17. Bxc3 {[%clk 0:02:06]}  Qxa2 {[%clk 0:01:15]} 18. b3 {[%clk 0:01:54]}  Nf6 {[%clk 0:01:11]} 19. Bg2 {[%clk 0:01:49]}  Be6 {[%clk 0:00:55]} 20. Rxd8+ {[%clk 0:01:47]}  Rxd8 {[%clk 0:00:54]} 21. Rd1 {[%clk 0:01:48]}  Bxb3 {[%clk 0:00:49]} 22. Rxd8+ {[%clk 0:01:46]}  Nxd8 {[%clk 0:00:50]} 23. Bb2 {[%clk 0:01:39]}  Be6 {[%clk 0:00:46]} 24. Nd4 {[%clk 0:01:39]}  Qc4 {[%clk 0:00:38]} 25. Qxc4 {[%clk 0:01:37]}  Bxc4 {[%clk 0:00:39]} 26. Nf5 {[%clk 0:01:32]}  Ng8 {[%clk 0:00:37]} 27. Ne3 {[%clk 0:01:27]}  Be6 {[%clk 0:00:23]} 28. f4 {[%clk 0:01:27]}  Nc6 {[%clk 0:00:16]} 29. Bxc6 {[%clk 0:01:26]}  bxc6 {[%clk 0:00:16]} 30. f5 {[%clk 0:01:27]}  Bd7 {[%clk 0:00:16]} 31. g4 {[%clk 0:01:26]}  e6 {[%clk 0:00:16]} 32. f6 {[%clk 0:01:22]}  e5 {[%clk 0:00:10]} 33. Bxe5 {[%clk 0:01:22]}  Be6 {[%clk 0:00:10]} 34. Kd2 {[%clk 0:01:21]}  Kb7 {[%clk 0:00:10]} 35. Kd3 {[%clk 0:01:21]}  a5 {[%clk 0:00:10]} 36. Bb2 {[%clk 0:01:19]}  Ka6 {[%clk 0:00:10]} 37. c4 {[%clk 0:01:19]}  a4 {[%clk 0:00:09]} 38. Kc3 {[%clk 0:01:18]}  Ka5 {[%clk 0:00:09]} 39. Ba3 {[%clk 0:01:18]}  Nxf6 {[%clk 0:00:09]} 40. Bb4+ {[%clk 0:01:19]}  Ka6 {[%clk 0:00:09]} 41. Kd4 {[%clk 0:01:17]}  h5 {[%clk 0:00:08]} 42. Ke5 {[%clk 0:01:13]}  hxg4 {[%clk 0:00:08]} 43. Kxf6 {[%clk 0:01:10]}  gxh3 {[%clk 0:00:08]} 44. Nf1 {[%clk 0:01:09]}  Bxc4 {[%clk 0:00:08]} 45. Nh2 {[%clk 0:01:09]}  Kb5 {[%clk 0:00:08]} 46. Ba3 {[%clk 0:01:09]}  Be6 {[%clk 0:00:09]} 47. Ke5 {[%clk 0:01:03]}  Kc4 {[%clk 0:00:09]} 48. Kd6 {[%clk 0:01:03]}  Bd5 {[%clk 0:00:09]} 49. Ng4 {[%clk 0:01:01]}  Kb3 {[%clk 0:00:09]} 50. Bc1 {[%clk 0:01:01]}  a3 {[%clk 0:00:10]} 51. Bf4 {[%clk 0:00:57]}  Kb2 {[%clk 0:00:08]} 52. Be5+ {[%clk 0:00:57]}  Kb1 {[%clk 0:00:08]} 53. Nf2 {[%clk 0:00:52]}  Be6 {[%clk 0:00:05]} 54. Nd1 {[%clk 0:00:49]}  a2 {[%clk 0:00:04]} 55. Nc3+ {[%clk 0:00:50]}  Kc2 {[%clk 0:00:04]} 56. Nxa2 {[%clk 0:00:50]}  Bxa2 {[%clk 0:00:05]} 57. Kxc6 {[%clk 0:00:50]}  Kd3 {[%clk 0:00:05]} 58. Kd6 {[%clk 0:00:50]}  Ke4 {[%clk 0:00:05]} 59. c6 {[%clk 0:00:50]}  Be6 {[%clk 0:00:06]} 60. Bh2 {[%clk 0:00:51]}  Kf3 {[%clk 0:00:06]} 61. Ke7 {[%clk 0:00:44]}  Kg2 {[%clk 0:00:06]} 62. Be5 {[%clk 0:00:42]}  Kf3 {[%clk 0:00:03]} 63. c7 {[%clk 0:00:41]}  Ke4 {[%clk 0:00:02]} 64. Bh2 {[%clk 0:00:41]}  Kf5 {[%clk 0:00:03]} 65. Kd8 {[%clk 0:00:40]}  Kg6 {[%clk 0:00:03]} 66. Ke7 {[%clk 0:00:39]}  Bc8 {[%clk 0:00:02]} 67. Bg3 {[%clk 0:00:38]}  Ba6 {[%clk 0:00:02]} 68. Kd7 {[%clk 0:00:37]}  f5 {[%clk 0:00:02]} 69. Ke6 {[%clk 0:00:35]}  Kg5 {[%clk 0:00:02]} 70. Ke5 {[%clk 0:00:34]}  Kg4 {[%clk 0:00:03]} 71. Bf4 {[%clk 0:00:33]}  Bc8 {[%clk 0:00:03]} 72. Bh2 {[%clk 0:00:33]}  Kf3 {[%clk 0:00:04]} 73. Bf4 {[%clk 0:00:21]}  Kg2 {[%clk 0:00:03]} 74. Kd6 {[%clk 0:00:21]}  h2 {[%clk 0:00:03]} 75. Bxh2 {[%clk 0:00:22]}  Kxh2 {[%clk 0:00:04]} 76. Ke7 {[%clk 0:00:23]}  f4 {[%clk 0:00:05]} 77. Kd8 {[%clk 0:00:24]}  Bh3 {[%clk 0:00:04]} 78. c8=Q {[%clk 0:00:25]}  Bxc8 {[%clk 0:00:04]} 79. Kxc8 {[%clk 0:00:25]}  f3 {[%clk 0:00:05]} 80. Kd7 {[%clk 0:00:26]}  f2 {[%clk 0:00:05]} 81. Ke6 {[%clk 0:00:27]}  f1=Q {[%clk 0:00:06]} 82. Kd5 {[%clk 0:00:28]}  Qf4 {[%clk 0:00:07]} 83. Kc5 {[%clk 0:00:29]}  Qe4 {[%clk 0:00:07]} 84. Kb6 {[%clk 0:00:30]}  Qd5 {[%clk 0:00:07]} 85. Ka7 {[%clk 0:00:30]}  Qc6 {[%clk 0:00:07]} 86. Kb8 {[%clk 0:00:31]}  Qd7 {[%clk 0:00:08]} 87. Ka8 {[%clk 0:00:32]}  Kg3 {[%clk 0:00:08]} 88. Kb8 {[%clk 0:00:33]}  Kf4 {[%clk 0:00:09]} 89. Ka8 {[%clk 0:00:34]}  Ke5 {[%clk 0:00:10]} 90. Kb8 {[%clk 0:00:35]}  Kd5 {[%clk 0:00:11]} 91. Ka8 {[%clk 0:00:36]}  Kc5 {[%clk 0:00:11]} 92. Kb8 {[%clk 0:00:36]}  Kb6 {[%clk 0:00:12]} 93. Ka8 {[%clk 0:00:37]}  Qd8# {[%clk 0:00:13]} 0-1


[Site "https://www.chess.com"]

[Event "Titled Tuesday Blitz July 4 Late 2023"]
[White "Domingo Nunez, Ruben"]
[Black "Uzcategui Rodriguez, Alejandro"]
[WhiteFideId "22245570"]
[BlackFideId "3903400"]
[WhiteElo "2615"]
[BlackElo "2451"]
[Result "1-0"]
[Round "9"]
[TimeControl "180+2"]
[Date "2023.07.04"]
[WhiteClock "0:00:10"]
[BlackClock "0:00:00"]
[Board "61"]

1. c4 {[%clk 0:03:00]}  Nf6 {[%clk 0:02:56]} 2. g3 {[%clk 0:03:00]}  d6 {[%clk 0:02:57]} 3. Bg2 {[%clk 0:03:01]}  Nbd7 {[%clk 0:02:57]} 4. d4 {[%clk 0:03:01]}  e5 {[%clk 0:02:58]} 5. dxe5 {[%clk 0:03:00]}  dxe5 {[%clk 0:02:59]} 6. Nc3 {[%clk 0:03:00]}  Be7 {[%clk 0:02:59]} 7. Qc2 {[%clk 0:03:01]}  O-O {[%clk 0:02:59]} 8. Nf3 {[%clk 0:03:01]}  c6 {[%clk 0:03:00]} 9. O-O {[%clk 0:03:00]}  Qc7 {[%clk 0:02:56]} 10. b3 {[%clk 0:02:58]}  Nc5 {[%clk 0:02:52]} 11. Bb2 {[%clk 0:02:53]}  Bg4 {[%clk 0:02:52]} 12. h3 {[%clk 0:02:46]}  Bh5 {[%clk 0:02:50]} 13. Qf5 {[%clk 0:02:45]}  Ncd7 {[%clk 0:02:33]} 14. Nh4 {[%clk 0:02:13]}  Bg6 {[%clk 0:02:16]} 15. Nxg6 {[%clk 0:02:12]}  hxg6 {[%clk 0:02:17]} 16. Qc2 {[%clk 0:02:05]}  Rfd8 {[%clk 0:02:12]} 17. a3 {[%clk 0:02:01]}  Nf8 {[%clk 0:02:10]} 18. b4 {[%clk 0:02:00]}  Ne6 {[%clk 0:02:04]} 19. e3 {[%clk 0:02:00]}  Rd7 {[%clk 0:01:56]} 20. Rfd1 {[%clk 0:01:53]}  Rad8 {[%clk 0:01:55]} 21. Rxd7 {[%clk 0:01:42]}  Qxd7 {[%clk 0:01:56]} 22. Rd1 {[%clk 0:01:42]}  Qc8 {[%clk 0:01:55]} 23. c5 {[%clk 0:01:42]}  Ng5 {[%clk 0:01:40]} 24. h4 {[%clk 0:01:32]}  Rxd1+ {[%clk 0:01:12]} 25. Qxd1 {[%clk 0:01:29]}  Ne6 {[%clk 0:01:10]} 26. Bh3 {[%clk 0:01:26]}  Ne8 {[%clk 0:00:35]} 27. Ne4 {[%clk 0:01:14]}  f5 {[%clk 0:00:34]} 28. Nd6 {[%clk 0:01:11]}  Bxd6 {[%clk 0:00:23]} 29. cxd6 {[%clk 0:01:11]}  Qd7 {[%clk 0:00:16]} 30. Bxe5 {[%clk 0:01:11]}  Nd8 {[%clk 0:00:13]} 31. Bf1 {[%clk 0:01:07]}  Kh7 {[%clk 0:00:12]} 32. Bc4 {[%clk 0:01:05]}  b5 {[%clk 0:00:12]} 33. Bb3 {[%clk 0:01:02]}  Nb7 {[%clk 0:00:11]} 34. h5 {[%clk 0:00:30]}  Nbxd6 {[%clk 0:00:10]} 35. hxg6+ {[%clk 0:00:31]}  Kxg6 {[%clk 0:00:11]} 36. Bc2 {[%clk 0:00:26]}  Kf7 {[%clk 0:00:05]} 37. e4 {[%clk 0:00:23]}  Qe6 {[%clk 0:00:04]} 38. Bxd6 {[%clk 0:00:20]}  Nxd6 {[%clk 0:00:05]} 39. exf5 {[%clk 0:00:20]}  Nxf5 {[%clk 0:00:04]} 40. Qf3 {[%clk 0:00:21]}  Qe1+ {[%clk 0:00:01]} 41. Kg2 {[%clk 0:00:20]}  g6 {[%clk 0:00:02]} 42. Bxf5 {[%clk 0:00:15]}  gxf5 {[%clk 0:00:01]} 43. Qxf5+ {[%clk 0:00:14]}  Ke7 {[%clk 0:00:01]} 44. Qc5+ {[%clk 0:00:14]}  Kd7 {[%clk 0:00:02]} 45. Qxa7+ {[%clk 0:00:15]}  Kd6 {[%clk 0:00:02]} 46. Qd4+ {[%clk 0:00:14]}  Kc7 {[%clk 0:00:02]} 47. Qa7+ {[%clk 0:00:14]}  Kd6 {[%clk 0:00:03]} 48. Qc5+ {[%clk 0:00:14]}  Kc7 {[%clk 0:00:03]} 49. Qe3 {[%clk 0:00:12]}  Qb1 {[%clk 0:00:00]} 50. g4 {[%clk 0:00:10]} 1-0


[Site "https://www.chess.com"]

[Event "Titled Tuesday Blitz July 4 Late 2023"]
[White "szachmistrz2500"]
[Black "Ganiev, Roman"]
[BlackFideId "4131452"]
[WhiteElo "2448"]
[BlackElo "2612"]
[Result "1-0"]
[Round "9"]
[TimeControl "180+2"]
[Date "2023.07.04"]
[WhiteClock "0:00:14"]
[BlackClock "0:00:10"]
[Board "62"]

1. d4 {[%clk 0:02:55]}  Nf6 {[%clk 0:02:59]} 2. Nf3 {[%clk 0:02:55]}  e6 {[%clk 0:02:58]} 3. c4 {[%clk 0:02:55]}  b6 {[%clk 0:02:57]} 4. a3 {[%clk 0:02:55]}  Bb7 {[%clk 0:02:57]} 5. Nc3 {[%clk 0:02:53]}  d5 {[%clk 0:02:58]} 6. Bg5 {[%clk 0:02:53]}  Be7 {[%clk 0:02:57]} 7. e3 {[%clk 0:02:54]}  O-O {[%clk 0:02:57]} 8. cxd5 {[%clk 0:02:50]}  Nxd5 {[%clk 0:02:56]} 9. Bxe7 {[%clk 0:02:49]}  Qxe7 {[%clk 0:02:56]} 10. Nxd5 {[%clk 0:02:49]}  Bxd5 {[%clk 0:02:56]} 11. Bd3 {[%clk 0:02:49]}  c5 {[%clk 0:02:56]} 12. O-O {[%clk 0:02:47]}  cxd4 {[%clk 0:02:56]} 13. Nxd4 {[%clk 0:02:46]}  Nc6 {[%clk 0:02:56]} 14. Nxc6 {[%clk 0:02:45]}  Bxc6 {[%clk 0:02:56]} 15. Bxh7+ {[%clk 0:02:45]}  Kxh7 {[%clk 0:02:49]} 16. Qc2+ {[%clk 0:02:45]}  g6 {[%clk 0:02:47]} 17. Qxc6 {[%clk 0:02:45]}  Kg7 {[%clk 0:02:46]} 18. Rac1 {[%clk 0:02:43]}  Qf6 {[%clk 0:02:42]} 19. Qc3 {[%clk 0:02:37]}  e5 {[%clk 0:02:41]} 20. Rfd1 {[%clk 0:02:34]}  Rad8 {[%clk 0:02:39]} 21. h3 {[%clk 0:02:27]}  Qe6 {[%clk 0:02:28]} 22. Qc7 {[%clk 0:02:25]}  Rxd1+ {[%clk 0:02:11]} 23. Rxd1 {[%clk 0:02:26]}  a5 {[%clk 0:01:49]} 24. Rd7 {[%clk 0:02:19]}  Qf5 {[%clk 0:01:42]} 25. Rd2 {[%clk 0:02:08]}  Rc8 {[%clk 0:01:36]} 26. Qxb6 {[%clk 0:02:07]}  Rc1+ {[%clk 0:01:35]} 27. Kh2 {[%clk 0:02:07]}  Qb1 {[%clk 0:01:36]} 28. Qxa5 {[%clk 0:02:02]}  Rh1+ {[%clk 0:01:36]} 29. Kg3 {[%clk 0:02:02]}  Qf5 {[%clk 0:01:36]} 30. Qb4 {[%clk 0:01:54]}  e4 {[%clk 0:01:32]} 31. Qd4+ {[%clk 0:01:31]}  Kh7 {[%clk 0:01:31]} 32. Qd8 {[%clk 0:01:18]}  g5 {[%clk 0:01:18]} 33. Qd5 {[%clk 0:00:57]}  Qf6 {[%clk 0:01:00]} 34. Qxe4+ {[%clk 0:00:57]}  Kg8 {[%clk 0:01:00]} 35. Rd5 {[%clk 0:00:50]}  Qxb2 {[%clk 0:00:40]} 36. Rxg5+ {[%clk 0:00:49]}  Kf8 {[%clk 0:00:40]} 37. Qe5 {[%clk 0:00:42]}  Qxa3 {[%clk 0:00:30]} 38. Qh8+ {[%clk 0:00:40]}  Ke7 {[%clk 0:00:30]} 39. Re5+ {[%clk 0:00:40]}  Kd7 {[%clk 0:00:28]} 40. Qf6 {[%clk 0:00:40]}  Rd1 {[%clk 0:00:16]} 41. Qxf7+ {[%clk 0:00:37]}  Kc6 {[%clk 0:00:16]} 42. Re6+ {[%clk 0:00:28]}  Rd6 {[%clk 0:00:12]} 43. Qe8+ {[%clk 0:00:26]}  Kd5 {[%clk 0:00:05]} 44. Re5+ {[%clk 0:00:24]}  Kc4 {[%clk 0:00:05]} 45. Qb5+ {[%clk 0:00:21]}  Kc3 {[%clk 0:00:04]} 46. Qc5+ {[%clk 0:00:19]}  Qxc5 {[%clk 0:00:04]} 47. Rxc5+ {[%clk 0:00:20]}  Kd3 {[%clk 0:00:05]} 48. Rg5 {[%clk 0:00:19]}  Ke2 {[%clk 0:00:05]} 49. h4 {[%clk 0:00:18]}  Rf6 {[%clk 0:00:05]} 50. f4 {[%clk 0:00:17]}  Kxe3 {[%clk 0:00:05]} 51. f5 {[%clk 0:00:17]}  Ke4 {[%clk 0:00:05]} 52. h5 {[%clk 0:00:17]}  Ke5 {[%clk 0:00:05]} 53. Kg4 {[%clk 0:00:17]}  Rb6 {[%clk 0:00:04]} 54. h6 {[%clk 0:00:16]}  Rxh6 {[%clk 0:00:04]} 55. Rg6 {[%clk 0:00:15]}  Rh2 {[%clk 0:00:02]} 56. g3 {[%clk 0:00:14]}  Rh1 {[%clk 0:00:02]} 57. Re6+ {[%clk 0:00:14]}  Kd5 {[%clk 0:00:02]} 58. Re8 {[%clk 0:00:14]}  Rf1 {[%clk 0:00:02]} 59. Kg5 {[%clk 0:00:14]}  Kd6 {[%clk 0:00:03]} 60. f6 {[%clk 0:00:14]}  Kd7 {[%clk 0:00:04]} 61. Re2 {[%clk 0:00:14]}  Rf3 {[%clk 0:00:05]} 62. g4 {[%clk 0:00:14]}  Kd8 {[%clk 0:00:05]} 63. Kg6 {[%clk 0:00:14]}  Rf4 {[%clk 0:00:05]} 64. g5 {[%clk 0:00:14]}  Kd7 {[%clk 0:00:05]} 65. f7 {[%clk 0:00:14]}  Kd6 {[%clk 0:00:05]} 66. Kg7 {[%clk 0:00:14]}  Rf5 {[%clk 0:00:05]} 67. g6 {[%clk 0:00:14]}  Kd7 {[%clk 0:00:05]} 68. f8=Q {[%clk 0:00:14]}  Rxf8 {[%clk 0:00:06]} 69. Kxf8 {[%clk 0:00:15]}  Kc7 {[%clk 0:00:07]} 70. g7 {[%clk 0:00:15]}  Kb7 {[%clk 0:00:08]} 71. g8=Q {[%clk 0:00:15]}  Ka7 {[%clk 0:00:09]} 72. Qg5 {[%clk 0:00:16]}  Kb7 {[%clk 0:00:10]} 73. Re6 {[%clk 0:00:16]}  Ka7 {[%clk 0:00:10]} 74. Qg7+ {[%clk 0:00:16]}  Kb8 {[%clk 0:00:11]} 75. Kg8 {[%clk 0:00:14]}  Ka8 {[%clk 0:00:10]} 76. Kh7 {[%clk 0:00:14]}  Kb8 {[%clk 0:00:10]} 77. Re8# {[%clk 0:00:14]} 1-0


[Site "https://www.chess.com"]

[Event "Titled Tuesday Blitz July 4 Late 2023"]
[White "Karttunen, Mika"]
[Black "Omariev, Maksim"]
[WhiteFideId "502081"]
[BlackFideId "4193423"]
[WhiteElo "2599"]
[BlackElo "2434"]
[Result "1-0"]
[Round "9"]
[TimeControl "180+2"]
[Date "2023.07.04"]
[WhiteClock "0:00:08"]
[BlackClock "0:00:02"]
[Board "63"]

1. d4 {[%clk 0:03:00]}  d5 {[%clk 0:02:40]} 2. Bf4 {[%clk 0:02:57]}  c6 {[%clk 0:02:37]} 3. Nc3 {[%clk 0:02:55]}  Qb6 {[%clk 0:02:36]} 4. Rb1 {[%clk 0:02:51]}  Nf6 {[%clk 0:02:34]} 5. e3 {[%clk 0:02:48]}  Bf5 {[%clk 0:02:32]} 6. Nf3 {[%clk 0:02:44]}  h6 {[%clk 0:02:28]} 7. Be2 {[%clk 0:02:40]}  Nbd7 {[%clk 0:02:28]} 8. a3 {[%clk 0:02:36]}  Nh5 {[%clk 0:02:16]} 9. Ne5 {[%clk 0:02:23]}  Nxf4 {[%clk 0:02:13]} 10. exf4 {[%clk 0:02:23]}  Nf6 {[%clk 0:02:02]} 11. g4 {[%clk 0:02:21]}  Bh7 {[%clk 0:01:53]} 12. f5 {[%clk 0:02:13]}  e6 {[%clk 0:01:14]} 13. fxe6 {[%clk 0:02:00]}  fxe6 {[%clk 0:01:15]} 14. Bd3 {[%clk 0:01:56]}  Bd6 {[%clk 0:01:10]} 15. Bxh7 {[%clk 0:01:50]}  Rxh7 {[%clk 0:01:11]} 16. Qd3 {[%clk 0:01:46]}  O-O-O {[%clk 0:01:08]} 17. Ng6 {[%clk 0:01:37]}  Nxg4 {[%clk 0:00:53]} 18. f3 {[%clk 0:00:42]}  Nf6 {[%clk 0:00:43]} 19. b4 {[%clk 0:00:40]}  Kb8 {[%clk 0:00:41]} 20. Na4 {[%clk 0:00:39]}  Qc7 {[%clk 0:00:40]} 21. Nc5 {[%clk 0:00:39]}  Re8 {[%clk 0:00:38]} 22. Kd2 {[%clk 0:00:30]}  Bxh2 {[%clk 0:00:25]} 23. Rbe1 {[%clk 0:00:29]}  Bd6 {[%clk 0:00:11]} 24. Nxe6 {[%clk 0:00:28]}  Qf7 {[%clk 0:00:12]} 25. Qf5 {[%clk 0:00:22]}  h5 {[%clk 0:00:09]} 26. Ng5 {[%clk 0:00:20]}  Rxe1 {[%clk 0:00:03]} 27. Nxf7 {[%clk 0:00:19]}  Rxh1 {[%clk 0:00:03]} 28. Nxd6 {[%clk 0:00:19]}  Rh2+ {[%clk 0:00:03]} 29. Kc3 {[%clk 0:00:19]}  Kc7 {[%clk 0:00:02]} 30. Nf7 {[%clk 0:00:14]}  h4 {[%clk 0:00:02]} 31. Qe5+ {[%clk 0:00:14]}  Kb6 {[%clk 0:00:02]} 32. Qxh2 {[%clk 0:00:13]}  h3 {[%clk 0:00:02]} 33. Nf4 {[%clk 0:00:10]}  g5 {[%clk 0:00:02]} 34. Nxg5 {[%clk 0:00:10]}  Rh4 {[%clk 0:00:03]} 35. Ngxh3 {[%clk 0:00:11]}  Nh5 {[%clk 0:00:02]} 36. Nxh5 {[%clk 0:00:10]}  Rxh5 {[%clk 0:00:02]} 37. Qg3 {[%clk 0:00:11]}  a5 {[%clk 0:00:02]} 38. Nf4 {[%clk 0:00:11]}  Rh1 {[%clk 0:00:02]} 39. Kb2 {[%clk 0:00:11]}  a4 {[%clk 0:00:01]} 40. Nd3 {[%clk 0:00:11]}  Kb5 {[%clk 0:00:01]} 41. Qd6 {[%clk 0:00:11]}  b6 {[%clk 0:00:02]} 42. Ne5 {[%clk 0:00:10]}  Rh6 {[%clk 0:00:01]} 43. Qxh6 {[%clk 0:00:10]}  c5 {[%clk 0:00:02]} 44. Qc6+ {[%clk 0:00:10]}  Ka6 {[%clk 0:00:02]} 45. Qxa4+ {[%clk 0:00:11]}  Kb7 {[%clk 0:00:02]} 46. Qd7+ {[%clk 0:00:11]}  Ka6 {[%clk 0:00:01]} 47. bxc5 {[%clk 0:00:12]}  Ka5 {[%clk 0:00:01]} 48. Qxd5 {[%clk 0:00:09]}  b5 {[%clk 0:00:01]} 49. Nc6+ {[%clk 0:00:09]}  Ka4 {[%clk 0:00:02]} 50. Qb3# {[%clk 0:00:08]} 1-0


[Site "https://www.chess.com"]